fUSD/lending_fUSD_20240528
["ID","MTS","AMOUNT","RATE_DAILY","PERIOD"]
[328108993,1716868241301,-150.0,0.00032602,2]
[328108994,1716868241310,-150.0,0.00032602,2]
[328108995,1716868241320,-150.0,0.00032605,2]
[328108996,1716868241330,-150.0,0.00032612,2]
[328108997,1716868241339,-150.0,0.00032612,2]
[328108998,1716868241349,-150.0,0.00032617,2]
[328108999,1716868241358,-150.0,0.00032619,2]
[328109000,1716868241367,-150.0,0.00032621,2]
[328109001,1716868241376,-150.0,0.00032626,2]
[328109002,1716868241385,-150.0,0.00032629,2]
[328109003,1716868241395,-150.0,0.00032632,2]
[328109004,1716868241404,-150.0,0.00032635,2]
[328109005,1716868241413,-150.0,0.00032637,2]
[328109006,1716868241423,-2389.72289154,0.00032641,4]
[328109007,1716868241433,-150.0,0.00032642,2]
[328109008,1716868241447,-215.92459068,0.00032643,5]
[328109009,1716868241457,-150.0,0.00032644,2]
[328109010,1716868241468,-150.0,0.00032645,2]
[328109011,1716868241478,-150.0,0.00032646,2]
[328109012,1716868241488,-150.0,0.00032648,2]
[328109013,1716868241497,-150.0,0.0003265,2]
[328109014,1716868241507,-150.0,0.0003265,2]
[328109015,1716868241517,-150.0,0.0003265,2]
[328109016,1716868241527,-150.0,0.00032655,2]
[328109017,1716868241536,-150.0,0.00032657,2]
[328109018,1716868241545,-150.0,0.00032658,2]
[328109019,1716868241554,-150.0,0.00032658,2]
[328109020,1716868241563,-150.0,0.00032659,2]
[328109021,1716868241573,-150.0,0.00032661,2]
[328109022,1716868241582,-150.0,0.00032664,2]
[328109023,1716868241591,-150.0,0.00032666,2]
[328109024,1716868241601,-150.0,0.00032666,2]
[328109025,1716868241610,-150.8,0.00032669,2]
[328109026,1716868241621,-150.0,0.00032669,2]
[328109027,1716868241630,-150.0,0.0003267,2]
[328109028,1716868241639,-150.0,0.0003267,2]
[328109029,1716868241649,-150.0,0.00032671,2]
[328109030,1716868241658,-150.0,0.00032674,2]
[328109031,1716868241667,-150.0,0.00032675,2]
[328109032,1716868241677,-608.61,0.00032676,2]
[328109033,1716868241686,-150.0,0.00032677,2]
[328109034,1716868241695,-150.0,0.00032677,2]
[328109035,1716868241704,-150.0,0.00032678,2]
[328109036,1716868241713,-14459.92808669,0.00032679,2]
[328109037,1716868241762,-514.43467306,0.00032679,2]
[328109038,1716868243529,-1062.0,0.00029296,2]
[328109039,1716868243539,-204.194,0.00032296,2]
[328109040,1716868243549,-150.0,0.00032581,2]
[328109041,1716868243559,-201.493454,0.000326,7]
[328109042,1716868243568,-136.4560065,0.00032604,2]
[328109043,1716868243609,-255.14936984,0.00031479,2]
[328109044,1716868243682,-14.45561505,0.00031479,2]
[328109045,1716868243692,-13.5439935,0.00032604,2]
[328109046,1716868243704,-150.0,0.0003261,2]
[328109047,1716868243714,-150.0,0.00032613,2]
[328109048,1716868243724,-150.0,0.00032619,2]
[328109049,1716868243735,-150.0,0.00032619,2]
[328109050,1716868243744,-150.0,0.00032627,2]
[328109051,1716868243754,-150.0,0.00032629,2]
[328109052,1716868243764,-150.0,0.0003263,2]
[328109053,1716868243773,-150.0,0.00032635,2]
[328109054,1716868243783,-150.0,0.00032639,2]
[328109055,1716868243793,-150.0,0.00032641,2]
[328109056,1716868243802,-40.29591976,0.00032645,2]
[328109061,1716868244512,-109.70408024,0.00032645,2]
[328109062,1716868244527,-150.0,0.00032646,2]
[328109066,1716868244538,-150.0,0.00032648,2]
[328109069,1716868244548,-150.0,0.00032663,2]
[328109070,1716868244557,-150.0,0.00032663,2]
[328109072,1716868244567,-150.0,0.00032668,2]
[328109073,1716868244576,-150.0,0.00032675,2]
[328109074,1716868244586,-3716.13252589,0.00032679,2]
[328109075,1716868244598,-880.85497441,0.00032679,2]
[328109076,1716868244610,-2565.65973995,0.00032679,2]
[328109077,1716868244621,-2100.0,0.00032679,2]
[328109078,1716868244631,-150.0,0.0003268,2]
[328109079,1716868244640,-150.0,0.00032687,2]
[328109080,1716868244650,-150.0,0.00032688,2]
[328109081,1716868244661,-150.0,0.0003269,2]
[328109082,1716868244671,-150.0,0.00032691,2]
[328109083,1716868244682,-150.0,0.00032692,2]
[328109084,1716868244692,-150.0,0.00032692,2]
[328109085,1716868244702,-960.90483074,0.00032696,4]
[328109086,1716868245137,-201.5143963,0.00032696,4]
[328109087,1716868245147,-155.71870933,0.00032696,4]
[328109088,1716868245158,-188.782454,0.00032696,4]
[328109089,1716868245168,-155.67616428,0.00032696,4]
[328109090,1716868245178,-155.60384361,0.00032696,4]
[328109091,1716868245187,-171.02061954,0.00032696,4]
[328109092,1716868245197,-2776.97105941,0.00032696,4]
[328109093,1716868245207,-157.37187338,0.00032696,4]
[328109094,1716868245216,-199.56905979,0.00032696,4]
[328109095,1716868245228,-207.06147927,0.00032696,4]
[328109096,1716868245238,-158.76247113,0.00032696,4]
[328109097,1716868245248,-537.31731405,0.00032696,4]
[328109098,1716868245257,-348.08802615,0.00032696,4]
[328109099,1716868245266,-195.43958413,0.00032696,4]
[328109100,1716868245276,-409.21511197,0.00032696,4]
[328109101,1716868245286,-305.54423446,0.00032696,4]
[328109102,1716868245296,-156.43569523,0.00032696,4]
[328109103,1716868245305,-163.14607749,0.00032696,4]
[328109104,1716868245315,-5304.20923464,0.00032696,4]
[328109105,1716868245325,-242.52655347,0.00032696,4]
[328109106,1716868245335,-179.31386985,0.00032696,4]
[328109107,1716868245345,-323.49456937,0.00032696,4]
[328109108,1716868245355,-150.0,0.00032696,2]
[328109109,1716868245365,-1376.17723374,0.00032697,4]
[328109110,1716868245375,-155.55463691,0.00032697,4]
[328109111,1716868245384,-301.79466021,0.00032697,4]
[328109112,1716868245394,-528.05894407,0.00032697,4]
[328109113,1716868245404,-160.12286757,0.00032697,4]
[328109114,1716868245414,-155.62540239,0.00032697,2]
[328109115,1716868245423,-238.39953495,0.00032697,4]
[328109116,1716868245434,-66377.74038446,0.00032697,4]
[328109117,1716868245452,-2862.97844448,0.00032697,4]
[328109118,1716868245464,-3484.30720686,0.00032697,4]
[328109119,1716868245477,-2459.41514448,0.00032697,4]
[328109120,1716868245487,-224.870756,0.00032697,7]
[328109121,1716868245497,-224.870756,0.00032697,7]
[328109122,1716868245506,-150.0,0.00032697,2]
[328109123,1716868245516,-4677.660797,0.000327,2]
[328109124,1716868245525,-850.85,0.00032701,2]
[328109125,1716868245534,-150.0,0.00032701,2]
[328109126,1716868245543,-150.0,0.00032708,2]
[328109127,1716868245552,-150.0,0.00032713,2]
[328109128,1716868245562,-150.0,0.00032713,2]
[328109129,1716868245572,-150.0,0.00032714,2]
[328109130,1716868245581,-150.0,0.00032714,2]
[328109131,1716868245591,-150.0,0.00032715,2]
[328109132,1716868245601,-150.0,0.00032716,2]
[328109133,1716868245611,-150.0,0.00032716,2]
[328109134,1716868245620,-150.0,0.00032717,2]
[328109135,1716868245630,-500.0,0.0003272,3]
[328109136,1716868245640,-150.0,0.00032721,2]
[328109137,1716868245650,-150.0,0.00032722,2]
[328109138,1716868245659,-500.0,0.00032729,3]
[328109139,1716868245669,-150.0,0.00032729,2]
[328109140,1716868245678,-150.0,0.00032737,2]
[328109141,1716868245688,-500.0,0.00032737,3]
[328109142,1716868245697,-500.0,0.00032746,3]
[328109143,1716868245707,-150.0,0.00032747,2]
[328109144,1716868245716,-150.0,0.0003275,2]
[328109145,1716868245727,-150.0,0.00032752,2]
[328109146,1716868245738,-500.0,0.00032755,3]
[328109147,1716868245747,-150.0,0.00032757,2]
[328109148,1716868245757,-150.0,0.00032758,2]
[328109149,1716868245767,-150.0,0.0003276,2]
[328109150,1716868245777,-500.0,0.00032764,3]
[328109151,1716868245787,-167.20416665,0.00032766,2]
[328109152,1716868245796,-150.0,0.00032769,2]
[328109153,1716868245806,-150.0,0.00032771,2]
[328109154,1716868245816,-500.0,0.00032773,3]
[328109155,1716868245825,-150.0,0.00032773,2]
[328109156,1716868245835,-160.0,0.00032776,2]
[328109157,1716868245845,-150.0,0.00032778,2]
[328109158,1716868245854,-1000.0,0.0003278,10]
[328109159,1716868245864,-354.72470808,0.00032781,7]
[328109160,1716868245874,-150.0,0.00032781,2]
[328109161,1716868245884,-500.0,0.00032781,3]
[328109162,1716868245894,-2389.72289154,0.00032783,4]
[328109163,1716868245903,-2500.0,0.00032784,2]
[328109164,1716868245913,-150.0,0.00032787,2]
[328109165,1716868245923,-500.0,0.0003279,3]
[328109166,1716868245933,-150.0,0.00032794,2]
[328109167,1716868245942,-500.0,0.00032799,3]
[328109168,1716868245951,-261.2,0.000328,9]
[328109169,1716868245960,-344.0,0.000328,6]
[328109170,1716868245970,-689.0,0.000328,6]
[328109171,1716868245980,-689.0,0.000328,6]
[328109172,1716868245989,-160.0,0.000328,6]
[328109173,1716868245998,-281.58,0.000328,6]
[328109174,1716868246007,-1004.12,0.000328,2]
[328109175,1716868246016,-304.6,0.000328,2]
[328109176,1716868246025,-304.6,0.000328,2]
[328109177,1716868246034,-150.0,0.000328,7]
[328109178,1716868246043,-150.0,0.00032804,2]
[328109179,1716868246053,-500.0,0.00032808,3]
[328109180,1716868246063,-150.0,0.00032811,2]
[328109181,1716868246072,-150.0,0.00032811,2]
[328109182,1716868246081,-500.0,0.00032817,3]
[328109183,1716868246090,-150.0,0.00032818,2]
[328109184,1716868246099,-150.0,0.00032823,2]
[328109185,1716868246109,-150.0,0.00032823,2]
[328109186,1716868246118,-500.0,0.00032825,3]
[328109187,1716868246128,-150.0,0.00032831,2]
[328109188,1716868246138,-500.0,0.00032834,3]
[328109189,1716868246147,-8830.0300997,0.0003284,2]
[328109190,1716868246156,-150.0,0.00032841,2]
[328109191,1716868246166,-150.0,0.00032842,2]
[328109192,1716868246175,-4986.0589703,0.00032843,3]
[328109193,1716868246316,-5370.66650863,0.00032843,3]
[328109194,1716868246326,-381.776032,0.00032843,7]
[328109195,1716868246335,-381.776032,0.00032843,7]
[328109196,1716868246344,-500.0,0.00032843,3]
[328109197,1716868246353,-150.0,0.00032844,2]
[328109198,1716868246363,-17.78142737,0.00032854,2]
[328109199,1716868246374,-1239.73142636,0.00032854,2]
[328109200,1716868246385,-609.37737409,0.00032854,2]
[328109201,1716868246408,-808.90977218,0.00032854,2]
[328109202,1716868246417,-150.0,0.00032854,2]
[328109203,1716868246426,-604.0,0.00032854,7]
[328109204,1716868246435,-150.8,0.00032867,2]
[328109205,1716868246449,-150.0,0.00032872,2]
[328109206,1716868246458,-2531.4358,0.00032873,2]
[328109207,1716868246468,-168.76,0.00032876,2]
[328109208,1716868246479,-168.76,0.00032876,2]
[328109209,1716868246488,-168.76,0.00032876,2]
[328109210,1716868246497,-168.76,0.00032876,2]
[328109211,1716868246507,-168.76,0.00032876,2]
[328109212,1716868246518,-168.76,0.00032876,2]
[328109213,1716868246527,-105.82028055,0.00032876,2]
[328109214,1716868246539,-62.93971945,0.00032876,2]
[328109215,1716868246548,-500.0,0.00032876,6]
[328109216,1716868246558,-1000.0,0.00032877,13]
[328109217,1716868246568,-1000.0,0.00032877,13]
[328109218,1716868246577,-1000.0,0.00032877,13]
[328109219,1716868246586,-1000.0,0.00032877,13]
[328109220,1716868246595,-1000.0,0.00032877,13]
[328109221,1716868246604,-1000.0,0.00032877,13]
[328109222,1716868246613,-1000.0,0.00032877,13]
[328109223,1716868246623,-591.0,0.00032877,13]
[328109224,1716868246632,-1000.0,0.00032877,13]
[328109225,1716868246641,-1000.0,0.00032877,13]
[328109226,1716868246650,-229.684386,0.00032877,7]
[328109227,1716868246660,-229.684386,0.00032877,7]
[328109228,1716868246669,-229.684386,0.00032877,7]
[328109229,1716868246678,-229.684386,0.00032877,7]
[328109230,1716868246687,-1000.0,0.00032877,13]
[328109231,1716868246696,-1000.0,0.00032877,13]
[328109232,1716868246705,-1000.0,0.00032877,13]
[328109233,1716868246715,-1000.0,0.00032877,13]
[328109234,1716868246724,-1000.0,0.00032877,13]
[328109235,1716868246733,-1000.0,0.00032877,13]
[328109236,1716868246743,-1000.0,0.00032877,13]
[328109237,1716868246752,-1000.0,0.00032877,13]
[328109238,1716868246761,-1000.0,0.00032877,13]
[328109239,1716868246770,-207.0,0.00032877,2]
[328109240,1716868246779,-1613.30778678,0.00032877,4]
[328109241,1716868246789,-129940.7992457,0.00032877,2]
[328109242,1716868246798,-20139.5464181,0.00032877,2]
[328109243,1716868246807,-654.76789453,0.00032877,2]
[328109244,1716868246817,-9602.903837,0.00032877,2]
[328109245,1716868246829,-567.1644179,0.00032877,2]
[328109246,1716868246839,-344.777415,0.00032877,2]
[328109247,1716868246849,-7443.5401644,0.00032877,2]
[328109248,1716868246859,-381.776032,0.00032877,7]
[328109249,1716868246870,-381.776032,0.00032877,7]
[328109250,1716868246879,-155.652094,0.00032877,7]
[328109251,1716868246888,-502.18901766,0.00032877,2]
[328109252,1716868246898,-347.04820075,0.00032877,2]
[328109253,1716868246907,-224.870756,0.00032877,7]
[328109254,1716868246916,-224.870756,0.00032877,7]
[328109255,1716868246926,-229.684386,0.00032877,7]
[328109256,1716868246935,-229.684386,0.00032877,7]
[328109257,1716868246944,-151.0,0.00032877,7]
[328109258,1716868246953,-185.693683,0.00032877,7]
[328109259,1716868246962,-151.0,0.00032877,7]
[328109260,1716868246972,-154.08102,0.00032877,7]
[328109261,1716868246981,-151.0,0.00032877,7]
[328109262,1716868246991,-201.493454,0.00032877,7]
[328109263,1716868247000,-201.493454,0.00032877,7]
[328109264,1716868247010,-2682.77573991,0.000329,10]
[328109265,1716868247019,-1417.7443768,0.000329,30]
[328109266,1716868247028,-320.0,0.000329,2]
[328109267,1716868247038,-752.0,0.000329,2]
[328109268,1716868247048,-919.75301589,0.000329,2]
[328109269,1716868247058,-337.56965753,0.000329,2]
[328109270,1716868247067,-3106.16538838,0.000329,2]
[328109271,1716868247193,-3396.65,0.000329,2]
[328109272,1716868247204,-353.29081344,0.000329,2]
[328109273,1716868247216,-321.72389818,0.000329,2]
[328109274,1716868247226,-1108.0553,0.000329,2]
[328109275,1716868247235,-174.77006425,0.000329,4]
[328109276,1716868247244,-200.0,0.000329,2]
[328109277,1716868247253,-4647.11407232,0.000329,2]
[328109278,1716868247263,-28.65008696,0.000329,2]
[328109320,1716869433106,-406.61896149,0.0001396,2]
[328109321,1716869433116,-62.10273587,0.00013972,2]
[328109322,1716869433129,-460.43123519,0.00013972,2]
[328109323,1716869433142,-1375.30552789,0.00013972,2]
[328109324,1716869433151,-156.62,0.00013973,2]
[328109325,1716869433162,-160.27,0.00013973,2]
[328109326,1716869433171,-155.0,0.00016694,2]
[328109327,1716869433180,-705.56821066,0.00016695,5]
[328109328,1716869433190,-150.99,0.00019452,2]
[328109329,1716869433199,-773.0,0.000239,3]
[328109330,1716869433208,-334.73,0.00024951,2]
[328109331,1716869433217,-1201.899037,0.00025,2]
[328109332,1716869433228,-1218.56,0.00027012,2]
[328109333,1716869433238,-165.08,0.00027047,2]
[328109334,1716869433247,-186.5834836,0.00027071,2]
[328109335,1716869433256,-334.73,0.00027215,2]
[328109336,1716869433265,-250.0,0.00027238,2]
[328109337,1716869433276,-188.52,0.00027254,2]
[328109338,1716869433286,-805.91709047,0.0002739,2]
[328109339,1716869433295,-150.2,0.00027798,2]
[328109340,1716869433306,-170.17,0.00027849,2]
[328109341,1716869433316,-1227.51,0.00029288,10]
[328109342,1716869433326,-20291.69885724,0.00029288,2]
[328109343,1716869433338,-658.25,0.00029288,2]
[328109344,1716869433351,-614.7279758,0.00029288,2]
[328109345,1716869433363,-428.101543,0.00029288,2]
[328109346,1716869433374,-40181.35049919,0.00029288,2]
[328109347,1716869433383,-357.0,0.00029298,2]
[328109348,1716869433393,-440.0,0.00029298,2]
[328109349,1716869433403,-614.0,0.00029298,2]
[328109350,1716869433413,-1225.0,0.00029298,2]
[328109351,1716869433423,-1265.0,0.00029298,2]
[328109352,1716869433433,-1641.925,0.00029298,2]
[328109353,1716869433443,-516.416,0.00029298,2]
[328109354,1716869433452,-445.0,0.00029298,2]
[328109355,1716869433461,-1137.0,0.00029298,2]
[328109356,1716869433471,-3417.44,0.00029298,2]
[328109357,1716869433482,-4896.031,0.00029298,2]
[328109358,1716869433492,-37944.0,0.00029298,2]
[328109359,1716869433501,-334.73,0.00029479,2]
[328109360,1716869433511,-115067.87697333,0.00029888,2]
[328109362,1716869433522,-54402.93726456,0.00029888,2]
[328109364,1716869433532,-6271.32552108,0.00029888,2]
[328109366,1716869433544,-760.55939495,0.00029888,2]
[328109367,1716869433555,-60092.82223061,0.00029888,2]
[328109368,1716869433566,-625.3983,0.00029888,2]
[328109369,1716869433578,-2183.586924,0.00029888,2]
[328109370,1716869433593,-385.01912969,0.00029888,2]
[328109371,1716869433604,-3019.91304469,0.00029888,2]
[328109372,1716869433615,-4321.14263448,0.00029888,2]
[328109373,1716869433626,-21035.43966925,0.00029888,2]
[328109374,1716869433637,-459.488712,0.00029888,2]
[328109375,1716869433649,-5892.07939951,0.00029888,2]
[328109380,1716869438270,-785.60005,0.00029888,2]
[328109381,1716869438282,-1025.93346629,0.00029888,2]
[328109382,1716869438293,-2084.0327375,0.00029888,2]
[328109383,1716869438305,-2007.98320904,0.00029888,2]
[328109384,1716869438317,-2586.70432895,0.00029888,2]
[328109385,1716869438489,-251.16883427,0.00029888,2]
[328109386,1716869438546,-2061.50123773,0.00029888,2]
[328109387,1716869438557,-998.94221078,0.00029888,2]
[328109388,1716869438569,-462.66142284,0.00029888,2]
[328109395,1716869440642,-1820.65562107,0.00029888,2]
[328109396,1716869441187,-3464.1329812,0.00029888,2]
[328109397,1716869441248,-870.60999909,0.00029888,2]
[328109398,1716869441260,-443.43736833,0.00029888,2]
[328109399,1716869441418,-680.72,0.00029888,2]
[328109400,1716869441430,-7537.74594543,0.00029888,2]
[328109416,1716869443537,-182393.88628453,0.00029888,2]
[328109417,1716869443550,-146481.73539514,0.00029888,2]
[328109418,1716869443561,-530.41,0.00029893,2]
[328109419,1716869443571,-1170.89056519,0.000299,2]
[328109420,1716869443581,-23856.49509959,0.0003,4]
[328109421,1716869443591,-19427.2898834,0.0003,4]
[328109422,1716869443601,-5695.44208129,0.00030035,2]
[328109423,1716869443610,-1179.0062367,0.00030036,10]
[328109424,1716869443620,-154.6,0.00030068,2]
[328109425,1716869443629,-308.45822703,0.00030136,6]
[328109426,1716869443639,-518.79789979,0.00030136,6]
[328109427,1716869443648,-505.59426339,0.00030136,6]
[328109428,1716869443658,-264.50910161,0.00030136,6]
[328109429,1716869443668,-500.0,0.00030136,6]
[328109430,1716869443677,-500.0,0.00030136,6]
[328109431,1716869443686,-500.0,0.00030136,6]
[328109432,1716869443696,-500.0,0.00030136,6]
[328109433,1716869443705,-500.0,0.00030136,6]
[328109434,1716869443714,-500.0,0.00030136,6]
[328109435,1716869443724,-500.0,0.00030136,6]
[328109436,1716869443734,-500.0,0.00030136,6]
[328109437,1716869443743,-500.0,0.00030136,6]
[328109438,1716869443752,-500.0,0.00030136,6]
[328109439,1716869443761,-500.0,0.00030136,6]
[328109440,1716869443770,-500.0,0.00030136,6]
[328109441,1716869443780,-500.0,0.00030136,6]
[328109442,1716869443788,-500.0,0.00030136,6]
[328109443,1716869443798,-500.0,0.00030136,6]
[328109444,1716869443808,-500.0,0.00030136,6]
[328109445,1716869443820,-500.0,0.00030136,6]
[328109446,1716869443829,-500.0,0.00030136,6]
[328109447,1716869443839,-500.0,0.00030136,6]
[328109448,1716869443848,-500.0,0.00030136,6]
[328109449,1716869443858,-500.0,0.00030136,6]
[328109450,1716869443868,-1170.89056518,0.00030279,10]
[328109451,1716869443878,-1179.00623667,0.000304,10]
[328109452,1716869443888,-749.98458113,0.00030627,2]
[328109453,1716869443898,-1170.89056518,0.00030658,10]
[328109454,1716869443908,-500.0,0.00030763,6]
[328109455,1716869443917,-500.0,0.00030763,6]
[328109456,1716869443927,-500.0,0.00030763,6]
[328109457,1716869443936,-500.0,0.00030763,6]
[328109458,1716869443945,-1179.00623667,0.00030764,10]
[328109459,1716869443955,-1170.89056518,0.00031037,10]
[328109460,1716869443964,-1067.059884,0.00031126,120]
[328109461,1716869443973,-1179.00623667,0.00031128,10]
[328109462,1716869443983,-150.2,0.00031273,2]
[328109463,1716869443993,-1170.89056518,0.00031416,10]
[328109464,1716869444002,-1179.00623667,0.00031492,10]
[328109465,1716869444012,-334.73,0.00031743,2]
[328109466,1716869444021,-1170.89056518,0.00031796,10]
[328109467,1716869444030,-1179.00623667,0.00031856,10]
[328109468,1716869444039,-524.82,0.00031879,2]
[328109469,1716869444049,-226.13,0.00031879,2]
[328109470,1716869444059,-408.47,0.00031879,2]
[328109471,1716869444068,-524.82,0.00031879,2]
[328109472,1716869444078,-524.82,0.00031879,2]
[328109473,1716869444087,-842.05,0.00031879,2]
[328109474,1716869444096,-330.63,0.00031879,2]
[328109475,1716869444105,-710.82,0.00031879,2]
[328109476,1716869444114,-160.45,0.00031879,2]
[328109477,1716869444123,-299.65,0.00031879,2]
[328109478,1716869444133,-509.99540831,0.00031889,6]
[328109479,1716869444142,-550.76716819,0.00031889,6]
[328109480,1716869444152,-500.0,0.00031889,6]
[328109481,1716869444161,-500.0,0.00031889,6]
[328109482,1716869444171,-500.0,0.00031889,6]
[328109483,1716869444180,-336.5,0.00031889,6]
[328109484,1716869444189,-500.0,0.00031889,6]
[328109485,1716869444199,-581.71948035,0.00031889,6]
[328109486,1716869444208,-500.0,0.00031889,6]
[328109487,1716869444217,-500.0,0.00031889,6]
[328109488,1716869444226,-500.0,0.00031889,6]
[328109489,1716869444237,-600.0,0.00031903,2]
[328109490,1716869444246,-334.02343811,0.00032,4]
[328109491,1716869444255,-1170.89056518,0.00032175,10]
[328109492,1716869444264,-1179.00623667,0.0003222,10]
[328109493,1716869444273,-1121.2343893,0.00032242,5]
[328109494,1716869444282,-1022.92,0.00032288,10]
[328109495,1716869444291,-327.20474031,0.00032295,6]
[328109496,1716869444300,-398.2040493,0.00032297,6]
[328109497,1716869444309,-500.0,0.00032297,6]
[328109498,1716869444320,-500.0,0.00032297,6]
[328109499,1716869444330,-284.5058881,0.00032297,6]
[328109500,1716869444339,-500.0,0.00032297,6]
[328109501,1716869444349,-500.0,0.00032297,6]
[328109502,1716869444358,-357.0,0.00032298,2]
[328109503,1716869444367,-440.0,0.00032298,2]
[328109504,1716869444377,-614.0,0.00032298,2]
[328109505,1716869444386,-1225.0,0.00032298,2]
[328109506,1716869444395,-1265.0,0.00032298,2]
[328109507,1716869444404,-445.0,0.00032298,2]
[328109508,1716869444413,-306.224,0.00032298,2]
[328109509,1716869444422,-20300.442,0.00032298,2]
[328109510,1716869444431,-207.0,0.00032415,2]
[328109511,1716869444440,-1000.0,0.00032415,2]
[328109512,1716869444449,-500.0,0.00032499,6]
[328109513,1716869444458,-500.0,0.00032499,6]
[328109514,1716869444468,-7500.0,0.000325,2]
[328109515,1716869444477,-700.0,0.00032506,10]
[328109516,1716869444488,-800.0,0.00032506,10]
[328109517,1716869444497,-215.92459068,0.00032523,4]
[328109518,1716869444506,-185.35342715,0.00032523,2]
[328109519,1716869444515,-303.60236743,0.00032523,2]
[328109520,1716869444525,-1170.89056518,0.00032554,10]
[328109521,1716869444536,-1179.00623667,0.00032584,10]
[328109522,1716869444545,-303.60236737,0.00032595,2]
[328109523,1716869444554,-500.0,0.00032599,6]
[328109524,1716869444563,-500.0,0.00032599,6]
[328109525,1716869444573,-616.41696897,0.00032599,2]
[328109526,1716869444583,-500.0,0.00032599,6]
[328109527,1716869444592,-500.0,0.00032599,6]
[328109528,1716869444602,-500.0,0.00032599,6]
[328109529,1716869444611,-1435.16,0.00032599,6]
[328109530,1716869444620,-500.0,0.00032599,6]
[328109531,1716869444630,-500.0,0.00032599,6]
[328109532,1716869444639,-500.0,0.00032599,6]
[328109533,1716869444648,-500.0,0.00032599,6]
[328109534,1716869444657,-500.0,0.00032599,6]
[328109535,1716869444667,-500.0,0.00032599,6]
[328109536,1716869444676,-530.63578273,0.00032599,6]
[328109537,1716869444685,-500.0,0.00032599,6]
[328109538,1716869444695,-250000.0,0.000326,7]
[328109539,1716869444705,-500.0,0.00032623,2]
[328109540,1716869444714,-185.35342711,0.00032636,2]
[328109541,1716869444723,-303.60236737,0.00032666,2]
[328109542,1716869444734,-970.18778081,0.00032695,2]
[328109543,1716869444744,-150.0,0.00032701,2]
[328109544,1716869444754,-302.59,0.00032701,2]
[328109545,1716869444763,-150.0,0.00032701,2]
[328109546,1716869444773,-150.0,0.00032701,2]
[328109547,1716869444782,-150.0,0.00032701,2]
[328109548,1716869444791,-286.19,0.00032703,2]
[328109549,1716869444801,-150.0,0.00032703,2]
[328109550,1716869444814,-163.81,0.00032703,2]
[328109551,1716869444824,-421.43,0.00032703,2]
[328109552,1716869444833,-152.0,0.00032703,2]
[328109553,1716869444843,-352.4,0.00032703,2]
[328109554,1716869444852,-150.0,0.00032703,2]
[328109555,1716869444862,-150.0,0.00032703,2]
[328109556,1716869444871,-421.43,0.00032703,2]
[328109557,1716869444880,-352.4,0.00032703,2]
[328109558,1716869444891,-150.0,0.00032703,2]
[328109559,1716869444900,-150.0,0.00032703,2]
[328109560,1716869444909,-163.73,0.00032703,2]
[328109561,1716869444918,-150.0,0.00032703,2]
[328109562,1716869444928,-150.0,0.00032703,2]
[328109563,1716869444937,-421.43,0.00032703,2]
[328109564,1716869444946,-150.0,0.00032703,2]
[328109565,1716869444956,-150.0,0.00032703,2]
[328109566,1716869444965,-163.73,0.00032703,2]
[328109567,1716869444975,-352.4,0.00032703,2]
[328109568,1716869444986,-150.0,0.00032703,2]
[328109569,1716869444995,-150.0,0.00032703,2]
[328109570,1716869445155,-150.0,0.00032703,2]
[328109571,1716869445166,-150.0,0.00032703,2]